bitfinex/quotes_BTCUSD_20240828
["timestamp","ask_amount","ask_price","bid_price","bid_amount"]
[1724871108965,0.0004,59179.0,59178.0,1.98563505]
[1724871109171,0.0004,59179.0,59178.0,1.99063505]
[1724871109429,0.0004,59179.0,59178.0,2.00363505]
[1724871109873,0.0004,59179.0,59178.0,1.98963505]
[1724871110097,0.0004,59179.0,59178.0,2.00363505]
[1724871110322,0.02649682,59182.0,59181.0,1.55234282]
[1724871110765,0.02649682,59182.0,59181.0,1.5666638]
[1724871111424,0.00012,59184.0,59183.0,0.506901]
[1724871111647,0.00012,59184.0,59183.0,0.993435]
[1724871111868,0.00012,59184.0,59183.0,1.58373971]
[1724871112524,0.00012,59184.0,59183.0,1.92667371]
[1724871112765,0.00012,59184.0,59183.0,1.93519349]
[1724871113203,0.00012,59184.0,59183.0,2.66057131]
[1724871113488,0.00012,59184.0,59183.0,2.68357131]
[1724871114162,0.00818,59210.0,59189.0,0.005]
[1724871114403,0.00818,59210.0,59188.0,0.002]
[1724871114404,0.00818,59210.0,59209.0,0.168893]
[1724871114634,0.00818,59210.0,59197.0,0.1486]
[1724871114858,0.00818,59210.0,59209.0,0.01427029]
[1724871114859,0.04949427,59210.0,59209.0,0.01427029]
[1724871115071,0.04949427,59210.0,59203.0,0.337818]
[1724871115072,0.19593698,59209.0,59203.0,0.337818]
[1724871115332,0.00818,59210.0,59209.0,0.01366923]
[1724871115546,0.00818,59210.0,59209.0,0.844465]
[1724871115760,0.00818,59210.0,59209.0,1.19592023]
[1724871116025,0.00818,59210.0,59209.0,1.26242023]
[1724871116657,0.00818,59210.0,59209.0,1.88779805]
[1724871116882,0.00818,59210.0,59209.0,2.30768405]
[1724871117094,0.00818,59210.0,59209.0,2.31468405]
[1724871117355,0.00818,59210.0,59209.0,1.63911205]
[1724871117595,0.00818,59210.0,59209.0,0.60344823]
[1724871117804,0.00818,59210.0,59209.0,0.95423423]
[1724871118260,0.00818,59210.0,59209.0,0.96823423]
[1724871118484,0.00818,59210.0,59209.0,0.95423423]
[1724871118733,0.62487508,59210.0,59209.0,0.04166923]
[1724871118975,0.96265508,59210.0,59209.0,0.04166923]
[1724871119205,0.96265508,59210.0,59209.0,0.028]
[1724871119421,0.07178,59210.0,59209.0,0.042]
[1724871119643,0.00818,59210.0,59209.0,0.042]
[1724871119929,0.00818,59210.0,59209.0,0.22447662]
[1724871120134,0.00818,59210.0,59209.0,0.88942605]
[1724871120347,0.00818,59210.0,59209.0,1.21321205]
[1724871120581,0.00818,59210.0,59209.0,1.19921205]
[1724871121220,0.00766092,59210.0,59209.0,1.20621205]
[1724871121468,0.00766092,59210.0,59209.0,1.35543462]
[1724871121935,0.00766092,59210.0,59209.0,1.69322062]
[1724871122232,0.00766092,59210.0,59209.0,1.73322062]
[1724871122471,0.00766092,59210.0,59209.0,2.17040082]
[1724871122689,0.00766092,59210.0,59209.0,1.83061482]
[1724871122929,0.00766092,59210.0,59209.0,1.84361482]
[1724871123398,0.00766092,59210.0,59209.0,1.83061482]
[1724871123610,0.00766092,59210.0,59209.0,1.83761482]
[1724871123824,0.00766092,59210.0,59209.0,1.82122062]
[1724871124053,0.00766092,59210.0,59209.0,1.81922062]
[1724871124492,0.00766092,59210.0,59209.0,1.84722062]
[1724871124727,0.00766092,59210.0,59209.0,1.83322062]
[1724871125222,0.00766092,59210.0,59209.0,2.47259844]
[1724871125438,0.00766092,59210.0,59209.0,2.45859844]
[1724871125439,1e-08,59210.0,59209.0,2.45859844]
[1724871126575,1e-08,59210.0,59209.0,2.44459844]
[1724871126799,1e-08,59210.0,59209.0,2.45859844]
[1724871127058,1e-08,59210.0,59209.0,2.45516634]
[1724871127252,1e-08,59210.0,59209.0,2.46516634]
[1724871127517,1e-08,59210.0,59209.0,2.80295234]
[1724871127976,0.00817,59226.0,59209.0,2.80295234]
[1724871127977,0.00817,59226.0,59225.0,1.323632]
[1724871128407,0.00817,59226.0,59225.0,1.67986335]
[1724871128898,0.00817,59226.0,59225.0,1.68186335]
[1724871129103,0.00817,59226.0,59225.0,1.67986335]
[1724871129542,0.00817,59226.0,59225.0,2.40724117]
[1724871129779,0.00817,59226.0,59225.0,2.40524117]
[1724871130069,0.00817,59226.0,59225.0,2.41924117]
[1724871130493,0.00817,59226.0,59225.0,2.40724117]
[1724871130911,0.00817,59226.0,59225.0,2.42124117]
[1724871131148,0.00817,59226.0,59225.0,2.07654617]
[1724871131398,0.00817,59226.0,59225.0,1.49715117]
[1724871132082,0.00817,59226.0,59225.0,1.51115117]
[1724871132293,0.00817,59226.0,59225.0,1.15945617]
[1724871132510,0.00817,59226.0,59225.0,1.49715117]
[1724871133157,0.00817,59226.0,59225.0,1.48315117]
[1724871133375,0.00817,59226.0,59225.0,1.49715117]
[1724871133657,0.00817,59226.0,59225.0,1.02927335]
[1724871133842,0.00857,59239.0,59238.0,0.904352]
[1724871134076,0.00857,59239.0,59238.0,0.987552]
[1724871134286,0.00857,59239.0,59226.0,0.01]
[1724871134287,0.07907,59239.0,59226.0,0.0832]
[1724871134515,0.07907,59239.0,59238.0,0.51988335]
[1724871134754,0.00857,59239.0,59238.0,1.181673]
[1724871134977,0.00857,59239.0,59238.0,1.19512535]
[1724871135237,0.00857,59239.0,59238.0,0.86750435]
[1724871135468,0.00857,59239.0,59238.0,0.51988335]
[1724871135690,0.00857,59239.0,59238.0,0.85750435]
[1724871136129,0.00857,59239.0,59238.0,0.51988335]
[1724871136826,0.00857,59239.0,59238.0,0.93430435]
[1724871137036,0.00857,59239.0,59238.0,1.27192535]
[1724871137254,0.0629,59251.0,59243.0,1.181572]
[1724871137529,0.0629,59257.0,59243.0,1.258372]
[1724871137790,0.03464054,59244.0,59243.0,0.85742612]
[1724871138251,0.03464054,59244.0,59243.0,1.19501812]
[1724871138472,0.03464054,59244.0,59243.0,0.87142612]
[1724871138689,0.03464054,59244.0,59243.0,0.85742612]
[1724871139168,0.03464054,59244.0,59243.0,1.20601812]
[1724871139395,0.03464054,59244.0,59243.0,0.86842612]
[1724871139615,0.03464054,59244.0,59243.0,1.20601812]
[1724871139830,0.03464054,59244.0,59243.0,1.21801812]
[1724871140258,0.03464054,59244.0,59243.0,1.20601812]
[1724871140469,0.03464054,59244.0,59243.0,1.19501812]
[1724871140693,0.03464054,59244.0,59243.0,1.22301812]
[1724871140920,0.03464054,59244.0,59243.0,0.88542612]
[1724871141153,0.03464054,59244.0,59243.0,0.87142612]
[1724871141369,0.03464054,59244.0,59243.0,0.88542612]
[1724871141587,0.03464054,59244.0,59243.0,0.89942612]
[1724871141773,0.03464054,59244.0,59243.0,1.23701812]
[1724871142057,0.03464054,59244.0,59243.0,1.20901812]
[1724871142264,0.0629,59257.0,59256.0,0.506277]
[1724871142484,0.0629,59257.0,59256.0,0.843795]
[1724871142704,0.0675,59262.0,59258.0,0.50626]
[1724871142940,0.0675,59262.0,59258.0,0.843767]
[1724871143142,0.0675,59262.0,59258.0,0.85711625]
[1724871143781,0.0612,59262.0,59258.0,0.85711625]
[1724871144659,0.0612,59262.0,59258.0,0.53660925]
[1724871144660,0.0067,59259.0,59258.0,0.53660925]
[1724871144882,0.0067,59259.0,59258.0,0.02234925]
[1724871145102,0.0067,59259.0,59258.0,0.01334925]
[1724871145414,0.0077,59259.0,59258.0,0.03634925]
[1724871145642,0.0077,59259.0,59258.0,0.53159495]
[1724871145850,0.0077,59259.0,59258.0,0.19408795]
[1724871146946,0.0077,59259.0,59258.0,0.20408795]
[1724871147174,0.0067,59259.0,59258.0,0.02333495]
[1724871147400,0.17545,59259.0,59258.0,0.01333495]
[1724871147617,0.0067,59259.0,59258.0,0.02333495]
[1724871147835,0.03316706,59259.0,59258.0,0.02]
[1724871148057,0.03316706,59259.0,59258.0,0.03333548]
[1724871148318,0.03316706,59259.0,59258.0,0.02333548]
[1724871148546,0.03316706,59259.0,59258.0,0.01333548]
[1724871148798,0.00020371,59261.0,59260.0,0.168747]
[1724871149019,0.00020371,59261.0,59260.0,0.84711133]
[1724871149272,0.00020371,59261.0,59260.0,1.19793837]
[1724871149520,0.00020371,59261.0,59260.0,1.61893337]
[1724871150015,0.00020371,59261.0,59260.0,1.33706404]
[1724871150255,0.00020371,59261.0,59260.0,1.27606404]
[1724871150517,0.00020371,59261.0,59260.0,0.51957404]
[1724871150741,0.00020371,59261.0,59260.0,0.18207904]
[1724871150984,0.00020371,59261.0,59260.0,0.87106904]
[1724871151203,0.00020371,59261.0,59260.0,0.51957404]
[1724871151432,0.00020371,59261.0,59260.0,0.53357404]
[1724871151945,0.00020371,59261.0,59260.0,0.02733204]
[1724871152165,0.16894871,59261.0,59260.0,0.02733204]
[1724871152397,0.00020371,59261.0,59260.0,0.02733204]
[1724871152852,0.16894871,59261.0,59260.0,0.02733204]
[1724871153122,0.16894871,59261.0,59260.0,0.014]
[1724871153346,0.00020371,59261.0,59260.0,0.02531853]
[1724871153571,0.16894871,59261.0,59260.0,0.02031853]
[1724871153807,0.00020371,59261.0,59260.0,0.02031853]
[1724871154049,0.00020371,59261.0,59260.0,0.18806553]
[1724871154265,0.00020371,59261.0,59260.0,0.52556053]
[1724871154490,0.00020371,59261.0,59260.0,0.53156053]
[1724871154922,0.00020371,59261.0,59260.0,0.51956053]
[1724871155144,0.00020371,59261.0,59260.0,0.19706553]
[1724871155366,0.00020371,59261.0,59260.0,0.02831853]
[1724871155597,0.00020371,59261.0,59260.0,0.36581353]
[1724871155804,0.00020371,59261.0,59260.0,1.196232]
[1724871156033,0.00020371,59261.0,59260.0,0.87203475]
[1724871156278,0.00020371,59261.0,59260.0,0.93823475]
[1724871156524,0.00020371,59261.0,59260.0,1.26672975]
[1724871156762,0.00020371,59261.0,59260.0,1.27772975]
[1724871157203,0.00020371,59261.0,59260.0,1.27172975]
[1724871157431,0.00020371,59261.0,59260.0,1.26072975]
[1724871157661,0.001,59270.0,59269.0,1.263054]
[1724871157891,0.001,59270.0,59269.0,1.600498]
[1724871158150,0.001,59270.0,59269.0,1.68498815]
[1724871158395,0.07466369,59286.0,59278.0,1.518268]
[1724871158396,0.00836369,59286.0,59278.0,1.518268]
[1724871158613,0.00836369,59286.0,59278.0,1.600268]
[1724871158842,0.00836369,59286.0,59278.0,1.61353774]
[1724871159070,0.00836369,59286.0,59278.0,1.27614474]
[1724871160224,0.00836369,59286.0,59278.0,0.85675174]
[1724871160693,0.00836369,59286.0,59278.0,0.87075174]
[1724871161163,0.00836369,59286.0,59278.0,0.85675174]
[1724871161425,0.02645708,59281.0,59278.0,1.29014474]
[1724871161650,0.02645708,59281.0,59278.0,1.30414474]
[1724871162125,0.02645708,59281.0,59278.0,1.29014474]
[1724871162345,0.02645708,59281.0,59278.0,1.30414474]
[1724871162560,0.02645708,59281.0,59278.0,1.29014474]
[1724871162788,0.02645708,59281.0,59278.0,1.27614474]
[1724871163029,0.02645708,59281.0,59278.0,1.30414474]
[1724871163283,0.0063,59295.0,59278.0,0.12326974]
[1724871163492,0.0063,59295.0,59290.0,0.337324]
[1724871163710,0.0063,59295.0,59292.0,0.168655]
[1724871163936,0.0063,59295.0,59278.0,0.10926974]
[1724871163937,0.0063,59295.0,59294.0,0.168651]
[1724871164191,0.00356,59299.0,59298.0,0.168639]
[1724871164462,0.00356,59299.0,59298.0,0.505918]
[1724871164677,0.00356,59299.0,59298.0,1.19313474]
[1724871164913,0.00356,59299.0,59298.0,0.85585574]
[1724871165127,0.00356,59299.0,59298.0,0.99905574]
[1724871165380,0.00356,59299.0,59298.0,1.33633474]
[1724871165601,0.02644752,59314.0,59303.0,0.843127]
[1724871165803,0.02644752,59314.0,59303.0,0.921827]
[1724871166069,0.0004,59319.0,59303.0,0.921827]
[1724871166070,0.0004,59319.0,59303.0,1.33623053]
[1724871166738,0.16898,59319.0,59303.0,1.33623053]
[1724871166995,0.0004,59319.0,59303.0,1.35023053]
[1724871167460,0.0004,59319.0,59303.0,1.33623053]
[1724871167681,0.02644483,59305.0,59303.0,1.35023053]
[1724871168596,0.02644483,59305.0,59303.0,1.36423053]
[1724871168845,0.02644483,59305.0,59303.0,1.35023053]
[1724871169295,0.02644483,59305.0,59303.0,1.36423053]
[1724871169983,0.02644483,59305.0,59303.0,0.86977953]
[1724871170210,0.02644483,59305.0,59303.0,1.22103053]
[1724871170654,0.02644483,59305.0,59303.0,1.20703053]
[1724871170947,0.0067,59319.0,59318.0,0.168582]
[1724871171170,0.0004,59319.0,59318.0,0.505747]
[1724871171634,0.0004,59319.0,59318.0,0.8554136]
[1724871172297,0.0004,59319.0,59318.0,0.8604136]
[1724871172763,0.0004,59319.0,59318.0,0.5182486]
[1724871172982,0.0004,59319.0,59318.0,0.5312486]
[1724871173441,0.0004,59319.0,59318.0,0.1810836]
[1724871173669,0.0004,59319.0,59318.0,0.0125016]
[1724871173670,0.16898,59319.0,59318.0,0.0125016]
[1724871173919,0.50614,59319.0,59318.0,0.0265016]
[1724871174170,0.57868202,59319.0,59318.0,0.014]
[1724871174410,0.02684202,59319.0,59318.0,0.02649167]
[1724871174625,0.02684202,59319.0,59318.0,0.182582]
[1724871174845,0.02684202,59319.0,59318.0,0.86940929]
[1724871175076,0.02684202,59319.0,59318.0,0.94810929]
[1724871175506,0.02684202,59319.0,59318.0,0.93810929]
[1724871176013,0.02684202,59319.0,59318.0,0.94010929]
[1724871176243,0.02684202,59319.0,59318.0,0.93410929]
[1724871176503,0.02684202,59319.0,59318.0,0.96210929]
[1724871176724,0.02684202,59319.0,59318.0,0.94810929]
[1724871176949,0.02684202,59319.0,59318.0,0.85540929]
[1724871177207,0.02684202,59319.0,59318.0,0.88340929]
[1724871177424,0.02684202,59319.0,59318.0,0.54624429]
[1724871177644,0.0004,59319.0,59318.0,0.04049729]
[1724871177875,0.0004,59319.0,59318.0,0.20907929]
[1724871178331,0.0004,59319.0,59318.0,0.53224429]
[1724871178559,0.0004,59319.0,59318.0,0.18107929]
[1724871178781,0.0004,59319.0,59318.0,0.04049729]
[1724871179020,0.0004,59319.0,59318.0,0.02649729]
[1724871179296,0.16898,59319.0,59318.0,0.02649729]
[1724871179777,0.16898,59319.0,59318.0,0.04049729]
[1724871180425,0.16898,59319.0,59318.0,0.02649729]
[1724871180891,0.0004,59319.0,59318.0,0.19507929]
[1724871181153,0.0004,59319.0,59318.0,0.67544429]
[1724871181565,0.0004,59319.0,59318.0,0.01249729]
[1724871181825,0.0004,59319.0,59318.0,0.18407929]
[1724871182042,0.0004,59319.0,59318.0,0.003]
[1724871182270,0.0004,59319.0,59318.0,0.01547597]
[1724871182518,0.50714,59319.0,59318.0,0.02747597]
[1724871182726,0.0465,59319.0,59318.0,0.01547597]
[1724871182944,0.0004,59319.0,59314.0,0.337184]
[1724871183166,0.0014,59319.0,59318.0,0.521747]
[1724871183443,0.0014,59319.0,59318.0,0.850912]
[1724871183708,0.0014,59319.0,59318.0,1.240477]
[1724871183823,0.0014,59319.0,59318.0,1.25295219]
[1724871184037,0.0014,59319.0,59318.0,1.25795219]
[1724871184476,0.002215,59319.0,59318.0,1.25795219]
[1724871184697,0.002215,59319.0,59318.0,0.92178719]
[1724871185148,0.002215,59319.0,59318.0,0.86138719]
[1724871185368,0.002215,59319.0,59318.0,0.01847519]
[1724871185591,0.001215,59319.0,59318.0,0.01747519]
[1724871185813,0.001215,59319.0,59318.0,0.02247519]
[1724871185814,0.891215,59319.0,59318.0,0.02247519]
[1724871186040,0.554055,59319.0,59318.0,0.02247519]
[1724871186281,0.215895,59319.0,59318.0,0.02247519]
[1724871186508,0.891215,59319.0,59318.0,0.02993074]
[1724871186739,0.891215,59319.0,59318.0,0.008]
[1724871186740,1.228375,59319.0,59318.0,0.008]
[1724871186956,1.53246107,59319.0,59318.0,0.008]
[1724871187189,0.560355,59319.0,59318.0,0.009]
[1724871187635,0.897515,59319.0,59318.0,0.008]
[1724871187881,0.897515,59319.0,59305.0,0.420138]
[1724871187882,0.168602,59312.0,59305.0,0.420138]
[1724871188089,0.168606,59310.0,59306.0,0.168616]
[1724871188307,0.168609,59309.0,59306.0,0.01195628]
[1724871188971,0.505814,59311.0,59306.0,0.18057228]
[1724871189195,0.02644467,59309.0,59306.0,0.01895628]
[1724871189883,0.02644467,59309.0,59306.0,0.18757128]
[1724871190175,0.02644467,59309.0,59306.0,0.01195628]
[1724871190176,0.168611,59308.0,59306.0,0.01195628]
[1724871190403,0.19505367,59309.0,59306.0,0.01195628]
[1724871190625,0.19505367,59309.0,59306.0,0.01895628]
[1724871191063,0.19505367,59309.0,59306.0,0.01195628]
[1724871191291,0.168611,59308.0,59306.0,0.01195628]
[1724871191524,0.168611,59308.0,59306.0,0.01895628]
[1724871191957,0.02744467,59309.0,59307.0,0.168613]
[1724871192197,0.02744467,59309.0,59306.0,0.01895628]
[1724871192487,0.02744467,59309.0,59307.0,0.01196157]
[1724871192488,0.174911,59308.0,59307.0,0.01196157]
[1724871192673,0.59892948,59308.0,59307.0,0.01196157]
[1724871192911,0.168631,59301.0,59300.0,0.0008965]
[1724871193364,0.505893,59301.0,59300.0,0.0008965]
[1724871193590,0.53234234,59301.0,59300.0,0.0008965]
[1724871193808,0.86960434,59301.0,59300.0,0.0008965]
[1724871194028,1.21316634,59301.0,59300.0,0.0018965]
[1724871194256,1.21716634,59301.0,59300.0,0.0018965]
[1724871194487,1.26326634,59301.0,59300.0,0.0018965]
[1724871195207,0.19908034,59301.0,59300.0,0.0018965]
[1724871195427,0.19908034,59301.0,59300.0,0.1695305]
[1724871195428,0.02644934,59301.0,59300.0,0.1695305]
[1724871195872,0.02844934,59301.0,59300.0,0.01489035]
[1724871196107,0.19708034,59301.0,59300.0,0.01489035]
[1724871196355,0.02844934,59301.0,59300.0,0.51879235]
[1724871196882,0.03044934,59301.0,59300.0,0.01289035]
[1724871197106,0.03044934,59301.0,59300.0,0.18152435]
[1724871197333,0.02844934,59301.0,59300.0,0.51879235]
[1724871197565,0.02844934,59301.0,59300.0,0.18152435]
[1724871197805,0.02644934,59301.0,59300.0,0.18152435]
[1724871198038,0.02644934,59301.0,59300.0,0.60466489]
[1724871198267,0.02644934,59301.0,59300.0,0.93856035]
[1724871199172,0.02644934,59301.0,59300.0,0.60129235]
[1724871199622,0.02744934,59301.0,59300.0,0.61129235]
[1724871200079,0.02744934,59301.0,59300.0,0.26802435]
[1724871200308,0.02844934,59301.0,59300.0,0.10939035]
[1724871200528,0.02844934,59301.0,59300.0,0.03289035]
[1724871200996,0.02844934,59301.0,59300.0,0.20152435]
[1724871201675,0.02844934,59301.0,59300.0,0.03289035]
[1724871201885,0.53434234,59301.0,59300.0,0.03289035]
[1724871202445,1.26126634,59301.0,59300.0,0.03289035]
[1724871202954,1.60352834,59301.0,59300.0,0.0208965]
[1724871203180,1.72852834,59301.0,59300.0,0.0208965]
[1724871203413,1.72852834,59301.0,59300.0,0.0108965]
[1724871203414,1.72752834,59301.0,59300.0,0.0108965]
[1724871204081,1.72652834,59301.0,59300.0,0.0008965]
[1724871204293,1.73493249,59301.0,59300.0,0.0008965]
[1724871204738,1.73293249,59301.0,59300.0,0.0008965]
[1724871204954,1.90848413,59301.0,59300.0,0.0018965]
[1724871205205,1.89948413,59301.0,59300.0,0.0008965]
[1724871205462,1.90148413,59301.0,59300.0,0.0008965]
[1724871205677,1.95889467,59301.0,59300.0,0.0018965]
[1724871205897,1.90848413,59301.0,59300.0,0.0008965]
[1724871206120,1.96789204,59301.0,59300.0,0.0018965]
[1724871206363,1.99309994,59301.0,59300.0,0.0018965]
[1724871206608,2.00930521,59301.0,59300.0,0.0008965]
[1724871206820,1.90848413,59301.0,59300.0,0.0008965]
[1724871207038,1.91748413,59301.0,59300.0,0.0018965]
[1724871207264,1.75093249,59301.0,59300.0,0.0028965]
[1724871207474,1.84472909,59301.0,59300.0,0.0018965]
[1724871207695,1.81827975,59301.0,59300.0,0.0018965]
[1724871207905,1.81827975,59301.0,59300.0,0.0028965]
[1724871207906,1.71948315,59301.0,59300.0,0.0028965]
[1724871208141,1.82028099,59301.0,59300.0,0.0028965]
[1724871208391,1.8454789,59301.0,59300.0,0.0028965]
[1724871208615,1.88803479,59301.0,59300.0,0.0028965]
[1724871208848,1.94230326,59301.0,59300.0,0.0028965]
[1724871209336,2.0682845,59301.0,59300.0,0.0028965]
[1724871209571,1.87452093,59301.0,59300.0,0.0028965]
[1724871209792,1.77375162,59301.0,59300.0,0.0028965]
[1724871210288,1.72948315,59301.0,59300.0,0.0028965]
[1724871210563,1.45296639,59301.0,59300.0,0.0028965]
[1724871210822,1.37688865,59301.0,59300.0,0.0028965]
[1724871211038,1.74715065,59301.0,59300.0,0.0028965]
[1724871211305,1.40988865,59301.0,59300.0,0.0028965]
[1724871211549,1.40788865,59301.0,59300.0,0.0028965]
[1724871211868,1.31748865,59301.0,59300.0,0.0028965]
[1724871212076,1.31748865,59301.0,59300.0,0.0818965]
[1724871212077,0.1992985,59301.0,59300.0,0.0818965]
[1724871212344,0.5365605,59301.0,59300.0,0.0818965]
[1724871212586,0.5365605,59301.0,59300.0,0.26314944]
[1724871212587,0.0306675,59301.0,59300.0,0.26314944]
[1724871212871,0.0306675,59301.0,59300.0,0.88852726]
[1724871213177,0.0306675,59301.0,59300.0,1.90033126]
[1724871213371,0.000818,59305.0,59304.0,1.180357]
[1724871213628,0.000818,59305.0,59304.0,1.259357]
[1724871214117,0.000818,59305.0,59304.0,1.33504275]
[1724871214402,0.000818,59305.0,59304.0,2.29366557]
[1724871214856,0.001215,59319.0,59318.0,0.986012]
[1724871215078,0.001215,59319.0,59318.0,0.985012]
[1724871215327,0.001215,59319.0,59318.0,1.33474377]
[1724871215830,0.001215,59319.0,59318.0,1.67190877]
[1724871216063,0.002215,59319.0,59318.0,1.67790877]
[1724871216558,0.002215,59319.0,59318.0,1.34074377]
[1724871216780,0.002215,59319.0,59318.0,1.35474377]
[1724871217059,0.002215,59319.0,59318.0,1.01757877]
[1724871217284,0.001215,59319.0,59318.0,1.01157877]
[1724871217515,0.337053,59338.0,59318.0,0.16966677]
[1724871217748,0.16854,59333.0,59328.0,0.168552]
[1724871217989,0.16854,59333.0,59319.0,0.00337114]
[1724871217990,0.02643692,59334.0,59326.0,0.168558]
[1724871218222,0.19497492,59334.0,59329.0,0.16855]
[1724871218443,0.02643692,59334.0,59328.0,0.0778]
[1724871218704,0.02643692,59334.0,59330.0,0.01243517]
[1724871218940,0.02643692,59334.0,59329.0,0.01243918]
[1724871219195,0.02643692,59334.0,59331.0,0.01446248]
[1724871219439,0.02643692,59334.0,59330.0,0.18301214]
[1724871219661,0.02643692,59334.0,59328.0,0.414904]
[1724871219662,0.19497392,59334.0,59332.0,0.01446082]
[1724871219896,0.02643692,59334.0,59331.0,0.01446248]
[1724871220168,0.02643692,59334.0,59333.0,0.01445917]
[1724871220416,0.19497492,59334.0,59332.0,0.01446082]
[1724871220676,0.50562,59333.0,59332.0,0.01446082]
[1724871220932,0.50562,59333.0,59330.0,0.004]
[1724871220933,0.505636,59331.0,59330.0,0.004]
[1724871221153,0.842727,59331.0,59330.0,0.004]
[1724871221601,0.88084014,59331.0,59330.0,0.004]
[1724871222145,0.37520414,59331.0,59321.0,0.0778]
[1724871222373,0.32222299,59334.0,59333.0,0.16854]
[1724871222374,0.02643692,59334.0,59333.0,0.16854]
[1724871222620,0.02643692,59334.0,59333.0,0.50562]
[1724871222854,0.02725492,59334.0,59333.0,0.93756976]
[1724871223300,0.02725492,59334.0,59333.0,0.60048976]
[1724871223301,0.000818,59334.0,59333.0,0.60048976]
[1724871224017,0.000818,59334.0,59333.0,0.94256976]
[1724871224283,0.169355,59334.0,59333.0,0.01946976]
[1724871224754,0.000818,59334.0,59333.0,0.9975]
[1724871224971,0.02725251,59334.0,59333.0,1.01195437]
[1724871225440,0.02725251,59334.0,59333.0,1.00395437]
[1724871225689,0.02825251,59334.0,59333.0,1.34103437]
[1724871225947,0.02825251,59334.0,59333.0,1.34803437]
[1724871226219,0.02725251,59334.0,59333.0,1.34803437]
[1724871226451,0.00341445,59334.0,59333.0,1.34803437]
[1724871226686,0.00012,59344.0,59333.0,1.34803437]
[1724871226687,0.00012,59344.0,59343.0,0.228611]
[1724871226919,0.00012,59344.0,59343.0,0.981057]
[1724871227157,0.00012,59344.0,59343.0,0.65844809]
[1724871227902,0.00012,59344.0,59343.0,0.6625664]
[1724871228361,0.00012,59344.0,59343.0,0.6655664]
[1724871228827,0.00012,59344.0,59343.0,0.6625664]
[1724871229046,0.00012,59344.0,59343.0,1.0045894]
[1724871229778,0.00012,59344.0,59343.0,1.3476124]
[1724871229994,0.168481,59354.0,59350.0,0.168491]
[1724871230225,0.168476,59356.0,59351.0,0.168486]
[1724871230452,0.337335,59359.0,59351.0,0.0765]
[1724871230453,0.0004,59359.0,59351.0,0.0765]
[1724871230688,0.168469,59358.0,59354.0,0.168479]
[1724871231157,0.337334,59359.0,59355.0,0.01843246]
[1724871231404,0.168474,59356.0,59355.0,0.01843246]
[1724871231640,0.336949,59356.0,59351.0,0.0765]
[1724871231864,0.336949,59356.0,59355.0,0.01843246]
[1724871232087,0.336949,59356.0,59350.0,0.004]
[1724871232343,0.168474,59356.0,59355.0,0.01843246]
[1724871232582,0.0004,59359.0,59354.0,0.003]
[1724871232583,0.505432,59355.0,59354.0,0.003]
[1724871232816,0.842387,59355.0,59354.0,0.003]
[1724871233548,0.168496,59349.0,59344.0,0.0779]
[1724871233769,0.336972,59352.0,59344.0,0.0779]
[1724871233999,0.168493,59350.0,59346.0,0.168501]
[1724871234257,0.336972,59352.0,59345.0,0.01844099]
[1724871234483,0.336972,59352.0,59347.0,0.01843674]
[1724871234484,0.168495,59349.0,59347.0,0.01843674]
[1724871234712,0.36340984,59351.0,59346.0,0.01844081]
[1724871234968,0.02642884,59351.0,59348.0,0.01843656]
[1724871235187,0.168492,59350.0,59347.0,0.01844258]
[1724871235641,0.02642884,59351.0,59348.0,0.18693745]
[1724871236066,0.19491784,59351.0,59348.0,0.01844045]
[1724871236308,0.02642884,59351.0,59348.0,0.01844045]
[1724871236525,0.168493,59350.0,59348.0,0.01844045]
[1724871236728,0.168493,59350.0,59346.0,0.168503]
[1724871236943,0.168493,59350.0,59349.0,0.01843832]
[1724871237188,0.168493,59350.0,59348.0,0.007]
[1724871237441,0.02642884,59351.0,59349.0,0.01843832]
[1724871237666,0.19491784,59351.0,59349.0,0.01843832]
[1724871238129,0.02642884,59351.0,59349.0,0.01843832]
[1724871238352,0.02642884,59351.0,59349.0,0.19393132]
[1724871238558,0.02642884,59351.0,59349.0,0.18693132]
[1724871238768,0.02642884,59351.0,59349.0,0.01843832]
[1724871238976,0.19491784,59351.0,59349.0,0.01843832]
[1724871239192,0.02642884,59351.0,59349.0,0.01843832]
[1724871239402,0.19491884,59351.0,59349.0,0.02543832]
[1724871239615,0.19491884,59351.0,59350.0,0.0184362]
[1724871239833,0.02642884,59351.0,59350.0,0.0184362]
[1724871241121,0.02642884,59351.0,59350.0,0.0254362]
[1724871241371,0.02642884,59351.0,59350.0,0.1939272]
[1724871241615,0.02642884,59351.0,59350.0,0.6088102]
[1724871241858,0.02642884,59351.0,59350.0,1.2837762]
[1724871242066,0.02642884,59351.0,59350.0,0.9467932]
[1724871242957,0.02642884,59351.0,59350.0,0.9387932]
[1724871243171,0.02642884,59351.0,59350.0,1.2967762]
[1724871243643,0.001218,59359.0,59358.0,1.179283]
[1724871243878,0.001218,59359.0,59358.0,1.321283]
[1724871244103,0.001218,59359.0,59358.0,1.67664018]
[1724871244780,0.001218,59359.0,59358.0,1.33970218]
[1724871245231,0.001218,59359.0,59358.0,1.35370218]
[1724871245459,0.00858,59379.0,59368.0,1.179083]
[1724871245675,0.00858,59379.0,59368.0,1.325083]
[1724871245921,0.00858,59379.0,59368.0,1.34338034]
[1724871246161,0.00858,59379.0,59378.0,0.842062]
[1724871246402,0.00858,59379.0,59378.0,1.324887]
[1724871246645,0.00020334,59387.0,59386.0,0.841947]
[1724871246859,0.00020334,59387.0,59386.0,0.243689]
[1724871247085,0.00020334,59387.0,59386.0,0.59872449]
[1724871247313,0.00020334,59387.0,59386.0,0.66142449]
[1724871247809,0.00020334,59387.0,59386.0,0.01825649]
[1724871247810,0.03658436,59387.0,59386.0,0.01825649]
[1724871248028,0.00020334,59387.0,59386.0,0.02725649]
[1724871248258,0.00020334,59387.0,59378.0,0.0627]
[1724871248481,0.00020334,59387.0,59358.0,0.019]
[1724871248482,0.04622693,59386.0,59374.0,0.0753]
[1724871248709,0.000818,59379.0,59374.0,0.0753]
[1724871248927,0.168414,59378.0,59374.0,0.0753]
[1724871249153,0.000818,59379.0,59374.0,0.0753]
[1724871249154,0.000818,59379.0,59378.0,0.168412]
[1724871249387,0.000818,59379.0,59374.0,0.0753]
[1724871249614,0.000818,59379.0,59377.0,0.168414]
[1724871249845,0.000818,59379.0,59374.0,0.0753]
[1724871250088,0.000818,59379.0,59376.0,0.168416]
[1724871250318,0.168412,59378.0,59374.0,0.247721]
[1724871250554,0.168421,59375.0,59374.0,0.004]
[1724871250777,0.000818,59379.0,59369.0,0.0757]